[Event "Czech Youth U12 Boys 2024"]
[Site "Kouty nad Desnou"]
[Date "2024.03.15"]
[Round "8.4"]
[White "Artamonov, Mikhail"]
[Black "Bara, Jan"]
[Result "1/2-1/2"]
[ECO "B52"]
[WhiteElo "1727"]
[BlackElo "1852"]
[Annotator "NA COMBH"]
[PlyCount "78"]
[EventDate "2024.03.10"]
[EventType "swiss"]
[EventCountry "CZE"]
[SourceTitle "playchess.com"]
[Source "ChessBase"]
[SourceQuality "1"]
[TimeControl "40/5400+30:1800+30"]

1. e4 {[%emt 0:01:54]} c5 {[%emt 0:01:51]} 2. Nf3 {[%emt 0:00:26]} d6 {[%emt 0:00:25]} 3. Bb5+ {[%emt 0:00:15]} Bd7 {[%emt 0:00:08]} 4. Bxd7+ {[%emt 0:00:29]} Qxd7 {[%emt 0:00:10]} 5. O-O {[%emt 0:00:40]} Nc6 {[%emt 0:00:37]} 6. Re1 {[%emt 0:02:01]} g6 {[%emt 0:01:02]} 7. e5 {[%emt 0:02:02]} Nxe5 {[%emt 0:19:40]} 8. Nxe5 {[%emt 0:00:11]} dxe5 {[%emt 0:00:05]} 9. Rxe5 {[%emt 0:00:06]} Rc8 {[%emt 0:03:31]} 10. Nc3 {[%emt 0:03:23]} Bg7 {[%emt 0:03:54]} 11. Re1 {[%emt 0:04:36]} Nf6 {[%emt 0:01:54]} 12. d3 {[%emt 0:02:18]} O-O {[%emt 0:05:45]} 13. Bg5 {[%emt 0:02:22]} b5 {[%emt 0:13:00]} 14. Ne4 {[%emt 0:13:59]} Nxe4 {[%emt 0:05:13]} 15. Rxe4 {[%emt 0:00:05]} f6 {[%emt 0:05:01]} 16. Bf4 {[%emt 0:01:10]} f5 {[%emt 0:03:30]} 17. Re2 {[%emt 0:00:20]} Bxb2 {[%emt 0:01:06]} 18. Rb1 {[%emt 0:00:09]} Bf6 {[%emt 0:00:30]} 19. Qe1 {[%emt 0:02:14]} b4 {[%emt 0:04:27]} 20. Be5 {[%emt 0:04:35]} Rce8 {[%emt 0:09:14]} 21. d4 {[%emt 0:05:56]} Bxe5 {[%emt 0:02:38]} 22. Rxe5 {[%emt 0:01:26]} Qxd4 {[%emt 0:06:59]} 23. Rxe7 {[%emt 0:01:25]} Rxe7 {[%emt 0:00:32]} 24. Qxe7 {[%emt 0:00:02]} Rf7 {[%emt 0:00:31]} 25. Qe2 {[%emt 0:01:12]} Qe4 {[%emt 0:02:26]} 26. Qd2 {[%emt 0:02:56]} Re7 {[%emt 0:02:41]} 27. h3 {[%emt 0:01:31]} Kg7 {[%emt 0:01:31]} 28. a3 {[%emt 0:06:04]} a5 {[%emt 0:01:44]} 29. a4 {[%emt 0:02:07]} c4 {[%emt 0:01:46]} 30. Rd1 {[%emt 0:02:39]} c3 {[%emt 0:00:45]} 31. Qd8 {[%emt 0:01:33]} Qe2 {[%emt 0:02:03]} 32. Qd4+ {[%emt 0:00:40]} Qe5 {[%emt 0:00:12]} 33. Qd8 {[%emt 0:06:50]} Qc7 {[%emt 0:00:16]} 34. Qd4+ Qe5 35. Qd8 {[%emt 0:01:31]} b3 {[%emt 0:01:53]} 36. cxb3 {[%emt 0:01:13]} c2 {[%emt 0:00:10]} 37. Rc1 {[%emt 0:00:33]} Qe1+ {[%emt 0:00:28]} 38. Kh2 {[%emt 0:00:36]} Qxc1 {[%emt 0:00:38]} 39. Qxe7+ {[%emt 0:00:10]} Kh6 {[%emt 0:00:44]} 1/2-1/2

[Event "Czech Youth U12 Boys 2024"]
[Site "Kouty nad Desnou"]
[Date "2024.03.15"]
[Round "8.5"]
[White "Sudrich, Radek"]
[Black "Sochor, Vaclav"]
[Result "0-1"]
[ECO "B42"]
[WhiteElo "1998"]
[BlackElo "1826"]
[Annotator "RC"]
[PlyCount "68"]
[EventDate "2024.03.10"]
[EventType "swiss"]
[EventCountry "CZE"]
[SourceTitle "playchess.com"]
[Source "ChessBase"]
[SourceQuality "1"]
[TimeControl "40/5400+30:1800+30"]

1. e4 {[%emt 0:00:15]} c5 {[%emt 0:00:40]} 2. Nf3 {[%emt 0:01:10]} e6 {[%emt 0:00:59]} 3. d4 {[%emt 0:00:52]} cxd4 {[%emt 0:00:37]} 4. Nxd4 {[%emt 0:01:12]} a6 {[%emt 0:00:18]} 5. Bd3 {[%emt 0:01:22]} Qc7 {[%emt 0:00:19]} 6. O-O {[%emt 0:00:46]} Nf6 {[%emt 0:02:32]} 7. Nc3 {[%emt 0:02:32]} Bc5 {[%emt 0:02:16]} 8. Nb3 {[%emt 0:00:16]} Ba7 {[%emt 0:01:24]} 9. Kh1 {[%emt 0:01:16]} Nc6 {[%emt 0:02:38]} 10. Bg5 {[%emt 0:05:20]} h5 {[%emt 0:04:25]} 11. h3 {[%emt 0:01:21]} d6 {[%emt 0:04:01]} 12. Bxf6 {[%emt 0:03:18]} gxf6 {[%emt 0:00:14]} 13. Qf3 {[%emt 0:00:15]} Qe7 {[%emt 0:08:28]} 14. Rae1 {[%emt 0:01:42]} Bd7 {[%emt 0:02:29]} 15. Qe2 {[%emt 0:01:24]} O-O-O {[%emt 0:03:37]} 16. f4 {[%emt 0:00:49]} Rdg8 {[%emt 0:05:39]} 17. f5 {[%emt 0:02:12]} Kb8 {[%emt 0:05:59]} 18. Qf3 {[%emt 0:03:20]} Ne5 {[%emt 0:05:09]} 19. Qe2 {[%emt 0:01:35]} Rg3 {[%emt 0:04:58]} 20. Na5 {[%emt 0:01:32]} Bc6 {[%emt 0:04:12]} 21. Nxc6+ {[%emt 0:00:17]} Nxc6 {[%emt 0:00:25]} 22. Qd2 {[%emt 0:03:00]} Rhg8 {[%emt 0:05:06]} 23. Re2 {[%emt 0:01:34]} Ne5 {[%emt 0:07:51]} 24. Qf4 {[%emt 0:02:47]} Bd4 {[%emt 0:01:25]} 25. Rd1 {[%emt 0:00:19]} Nc6 {[%emt 0:03:51]} 26. Rf1 {[%emt 0:03:49]} Be5 {[%emt 0:01:49]} 27. Qd2 {[%emt 0:00:22]} Qf8 {[%emt 0:04:55]} 28. Nd1 {[%emt 0:01:05]} Qg7 {[%emt 0:01:46]} 29. c3 {[%emt 0:00:19]} Qg5 {[%emt 0:05:53]} 30. Qxg5 {[%emt 0:02:43]} R8xg5 {[%emt 0:00:07]} 31. Bc2 {[%emt 0:00:09]} Kc7 {[%emt 0:00:22]} 32. Ne3 {[%emt 0:00:33]} Kd7 {[%emt 0:01:18]} 33. Bb3 {[%emt 0:01:08]} Ne7 {[%emt 0:01:13]} 34. Ref2 {[%emt 0:03:17]} Rxe3 {[%emt 0:00:12]} 0-1

[Event "Czech Youth U12 Boys 2024"]
[Site "Kouty nad Desnou"]
[Date "2024.03.15"]
[Round "8.6"]
[White "Sotek, Matej"]
[Black "Kroulik, Stepan"]
[Result "1-0"]
[ECO "B44"]
[WhiteElo "1716"]
[BlackElo "1683"]
[Annotator "NA COMBH"]
[PlyCount "53"]
[EventDate "2024.03.10"]
[EventType "swiss"]
[EventCountry "CZE"]
[SourceTitle "playchess.com"]
[Source "ChessBase"]
[SourceQuality "1"]
[TimeControl "40/5400+30:1800+30"]

1. e4 {[%emt 0:00:02]} c5 {[%emt 0:00:07]} 2. Nf3 {[%emt 0:00:40]} e6 {[%emt 0:00:14]} 3. d4 {[%emt 0:00:57]} cxd4 {[%emt 0:00:29]} 4. Nxd4 {[%emt 0:00:20]} Nc6 {[%emt 0:00:27]} 5. Be2 {[%emt 0:01:10]} a6 {[%emt 0:00:27]} 6. Nc3 {[%emt 0:01:26]} Bb4 {[%emt 0:00:32]} 7. Nxc6 {[%emt 0:01:20]} Bxc3+ {[%emt 0:00:39]} 8. bxc3 {[%emt 0:00:05]} bxc6 {[%emt 0:00:14]} 9. O-O {[%emt 0:02:43]} Ne7 {[%emt 0:00:57]} 10. c4 {[%emt 0:03:09]} Qa5 {[%emt 0:03:24]} 11. Bb2 {[%emt 0:03:36]} O-O {[%emt 0:00:59]} 12. Qd4 {[%emt 0:02:20]} f6 {[%emt 0:02:12]} 13. Bc3 {[%emt 0:11:54]} Qc7 {[%emt 0:05:54]} 14. Bb4 {[%emt 0:01:49]} Re8 {[%emt 0:05:25]} 15. Bh5 {[%emt 0:00:53]} Ng6 {[%emt 0:02:44]} 16. Bd6 {[%emt 0:03:34]} Qa5 {[%emt 0:07:28]} 17. c5 {[%emt 0:01:34]} Qd8 {[%emt 0:16:47]} 18. f4 {[%emt 0:03:19]} Nh8 {[%emt 0:05:11]} 19. Bxe8 {[%emt 0:00:24]} Qxe8 {[%emt 0:00:11]} 20. Rab1 {[%emt 0:01:52]} Qd8 {[%emt 0:05:29]} 21. Rb3 {[%emt 0:00:47]} Nf7 {[%emt 0:02:59]} 22. Rfb1 {[%emt 0:00:34]} Qa5 {[%emt 0:01:04]} 23. Qb4 {[%emt 0:01:58]} Qb5 {[%emt 0:02:06]} 24. Qd2 {[%emt 0:01:08]} Qc4 {[%emt 0:03:39]} 25. Rb8 {[%emt 0:00:57]} Rxb8 {[%emt 0:00:38]} 26. Rxb8 {[%emt 0:00:15]} Nxd6 {[%emt 0:00:23]} 27. cxd6 {[%emt 0:00:35]} 1-0

[Event "Czech Youth U12 Boys 2024"]
[Site "Kouty nad Desnou"]
[Date "2024.03.15"]
[Round "8.7"]
[White "Havlik, David"]
[Black "Kala, Jakub"]
[Result "0-1"]
[ECO "A05"]
[WhiteElo "1580"]
[BlackElo "1750"]
[Annotator "NA COMBH"]
[PlyCount "82"]
[EventDate "2024.03.10"]
[EventType "swiss"]
[EventCountry "CZE"]
[SourceTitle "playchess.com"]
[Source "ChessBase"]
[SourceQuality "1"]
[TimeControl "40/5400+30:1800+30"]

1. Nf3 {[%emt 0:00:02]} Nf6 {[%emt 0:00:05]} 2. g3 {[%emt 0:00:08]} e6 {[%emt 0:00:19]} 3. Bg2 {[%emt 0:00:10]} d5 {[%emt 0:00:12]} 4. c4 {[%emt 0:00:11]} Be7 {[%emt 0:00:29]} 5. d4 {[%emt 0:00:08]} O-O {[%emt 0:00:25]} 6. Nc3 {[%emt 0:01:17]} b6 {[%emt 0:02:11]} 7. O-O {[%emt 0:01:36]} Bb7 {[%emt 0:00:44]} 8. Bf4 {[%emt 0:03:49]} c5 {[%emt 0:02:02]} 9. dxc5 {[%emt 0:07:10]} Bxc5 {[%emt 0:02:30]} 10. cxd5 {[%emt 0:02:29]} Nxd5 {[%emt 0:01:30]} 11. Nxd5 {[%emt 0:00:36]} Bxd5 {[%emt 0:04:45]} 12. Qc2 {[%emt 0:05:22]} h6 {[%emt 0:06:26]} 13. Rfd1 {[%emt 0:02:39]} Qe7 {[%emt 0:01:56]} 14. e4 {[%emt 0:02:57]} Bb7 {[%emt 0:01:25]} 15. a3 {[%emt 0:03:10]} Rc8 {[%emt 0:09:37]} 16. Qe2 {[%emt 0:05:26]} a5 {[%emt 0:07:29]} 17. Rd2 {[%emt 0:11:04]} Nc6 {[%emt 0:02:34]} 18. Rad1 {[%emt 0:07:54]} Ba6 {[%emt 0:00:32]} 19. Qe1 {[%emt 0:00:50]} Ra7 {[%emt 0:02:10]} 20. Be3 {[%emt 0:01:53]} e5 {[%emt 0:05:06]} 21. Bxc5 {[%emt 0:03:59]} bxc5 {[%emt 0:01:50]} 22. Bh3 {[%emt 0:05:03]} Rcc7 {[%emt 0:03:17]} 23. Bf1 {[%emt 0:05:13]} Nd4 {[%emt 0:04:43]} 24. Nxd4 {[%emt 0:01:04]} cxd4 {[%emt 0:00:35]} 25. Bxa6 {[%emt 0:02:49]} Rxa6 {[%emt 0:00:08]} 26. Rc1 {[%emt 0:03:39]} Rac6 {[%emt 0:04:56]} 27. Rxc6 {[%emt 0:02:08]} Rxc6 {[%emt 0:00:17]} 28. Rd3 {[%emt 0:02:24]} Qc7 {[%emt 0:01:25]} 29. Kg2 {[%emt 0:06:05]} Kh7 {[%emt 0:05:51]} 30. Qd1 {[%emt 0:05:30]} Rc2 {[%emt 0:05:53]} 31. Rb3 {[%emt 0:01:42]} Qc6 {[%emt 0:01:19]} 32. Qf3 {[%emt 0:02:16]} Qd7 {[%emt 0:05:21]} 33. Qd3 {[%emt 0:01:27]} Qc7 {[%emt 0:01:01]} 34. Qf3 {[%emt 0:00:44]} Rc1 {[%emt 0:02:19]} 35. Rb5 {[%emt 0:01:19]} Qc4 {[%emt 0:06:22]} 36. Qf5+ {[%emt 0:02:06]} g6 {[%emt 0:00:03]} 37. Qxe5 {[%emt 0:00:56]} Qf1+ {[%emt 0:00:05]} 38. Kf3 {[%emt 0:00:08]} Rc2 {[%emt 0:02:10]} 39. Rb3 {[%emt 0:01:45]} Rxf2+ {[%emt 0:00:38]} 40. Kg4 {[%emt 0:00:05]} f5+ {[%emt 0:00:14]} 41. exf5 {[%emt 0:30:27]} gxf5+ {[%emt 0:30:07]} 0-1

[Event "Czech Youth U12 Boys 2024"]
[Site "Kouty nad Desnou"]
[Date "2024.03.15"]
[Round "8.9"]
[White "Krisica, Lukas"]
[Black "Gresek, Oskar"]
[Result "0-1"]
[ECO "D43"]
[WhiteElo "1531"]
[BlackElo "1629"]
[Annotator "NA COMBH"]
[PlyCount "130"]
[EventDate "2024.03.10"]
[EventType "swiss"]
[EventCountry "CZE"]
[SourceTitle "playchess.com"]
[Source "ChessBase"]
[SourceQuality "1"]
[TimeControl "40/5400+30:1800+30"]

1. Nf3 {[%emt 0:00:43]} d5 {[%emt 0:00:42]} 2. d4 {[%emt 0:01:21]} Nf6 {[%emt 0:01:28]} 3. c4 {[%emt 0:02:30]} e6 {[%emt 0:00:42]} 4. Nc3 {[%emt 0:01:23]} c6 {[%emt 0:01:04]} 5. Bg5 {[%emt 0:02:11]} Be7 {[%emt 0:00:27]} 6. e3 {[%emt 0:04:16]} O-O {[%emt 0:00:51]} 7. cxd5 {[%emt 0:01:57]} exd5 {[%emt 0:01:05]} 8. Bd3 {[%emt 0:02:24]} Re8 {[%emt 0:01:32]} 9. Rc1 {[%emt 0:01:58]} h6 {[%emt 0:04:15]} 10. Bh4 {[%emt 0:01:53]} Bg4 {[%emt 0:03:43]} 11. h3 {[%emt 0:04:24]} Bxf3 {[%emt 0:02:16]} 12. Qxf3 {[%emt 0:00:14]} Nbd7 {[%emt 0:01:59]} 13. O-O {[%emt 0:08:05]} Rc8 {[%emt 0:04:07]} 14. Rfe1 {[%emt 0:00:50]} Ne4 {[%emt 0:08:31]} 15. Bxe7 {[%emt 0:13:29]} Qxe7 {[%emt 0:00:35]} 16. Qf4 {[%emt 0:04:50]} Ndf6 {[%emt 0:08:20]} 17. f3 {[%emt 0:05:50]} Ng5 {[%emt 0:05:23]} 18. e4 {[%emt 0:01:38]} dxe4 {[%emt 0:04:32]} 19. fxe4 {[%emt 0:00:11]} Ne6 {[%emt 0:04:30]} 20. Qf2 {[%emt 0:06:02]} Rcd8 {[%emt 0:05:37]} 21. Rcd1 {[%emt 0:02:36]} Nc7 {[%emt 0:05:43]} 22. e5 {[%emt 0:05:55]} Nfd5 {[%emt 0:01:36]} 23. Rf1 {[%emt 0:05:17]} Nxc3 {[%emt 0:03:50]} 24. bxc3 {[%emt 0:00:12]} Ne6 {[%emt 0:02:17]} 25. Bc4 {[%emt 0:03:54]} a6 {[%emt 0:04:47]} 26. Bb3 {[%emt 0:02:25]} Rd7 {[%emt 0:02:55]} 27. c4 {[%emt 0:02:15]} Nc7 {[%emt 0:01:50]} 28. Rfe1 {[%emt 0:01:22]} Red8 {[%emt 0:02:09]} 29. Qf4 {[%emt 0:02:50]} Ne6 {[%emt 0:05:26]} 30. Qe3 {[%emt 0:01:58]} Nxd4 {[%emt 0:02:18]} 31. Rb1 {[%emt 0:07:21]} Ne6 {[%emt 0:04:31]} 32. Qg3 {[%emt 0:01:06]} Rd3 {[%emt 0:01:40]} 33. Qg4 {[%emt 0:01:02]} R8d4 {[%emt 0:02:24]} 34. Qf5 {[%emt 0:00:57]} Qg5 {[%emt 0:02:51]} 35. Rf1 {[%emt 0:01:39]} Qxf5 {[%emt 0:01:04]} 36. Rxf5 {[%emt 0:00:06]} Rf4 {[%emt 0:00:29]} 37. Rxf4 {[%emt 0:00:06]} Nxf4 {[%emt 0:00:06]} 38. Rf1 {[%emt 0:00:49]} Ne6 {[%emt 0:00:49]} 39. c5 {[%emt 0:01:16]} Rc3 {[%emt 0:00:50]} 40. Rb1 {[%emt 0:00:36]} Nxc5 {[%emt 0:00:40]} 41. Bd1 {[%emt 0:30:35]} b5 {[%emt 0:30:26]} 42. Bf3 {[%emt 0:00:16]} Ne6 {[%emt 0:00:19]} 43. Kf1 {[%emt 0:00:27]} Ng5 {[%emt 0:00:45]} 44. Ke2 {[%emt 0:00:46]} Nxf3 {[%emt 0:00:14]} 45. gxf3 {[%emt 0:00:01]} Rc2+ {[%emt 0:00:17]} 46. Kd3 {[%emt 0:00:04]} Rxa2 {[%emt 0:00:15]} 47. Rc1 {[%emt 0:00:01]} Ra3+ {[%emt 0:00:17]} 48. Ke4 {[%emt 0:00:01]} Ra4+ {[%emt 0:00:49]} 49. Kd3 {[%emt 0:00:35]} Rc4 {[%emt 0:00:32]} 50. Ra1 {[%emt 0:00:19]} Kf8 {[%emt 0:00:30]} 51. Rxa6 {[%emt 0:00:14]} Ke7 {[%emt 0:00:19]} 52. Ra7+ {[%emt 0:00:26]} Ke6 {[%emt 0:00:22]} 53. Ke3 {[%emt 0:01:20]} b4 {[%emt 0:01:15]} 54. Rb7 {[%emt 0:01:24]} g6 {[%emt 0:00:32]} 55. Rb8 {[%emt 0:00:42]} Rc3+ {[%emt 0:00:26]} 56. Ke4 {[%emt 0:00:11]} b3 {[%emt 0:00:36]} 57. h4 {[%emt 0:00:26]} c5 {[%emt 0:00:40]} 58. f4 {[%emt 0:00:08]} c4 {[%emt 0:00:20]} 59. Rb6+ {[%emt 0:00:12]} Ke7 {[%emt 0:00:28]} 60. Rb4 {[%emt 0:01:09]} Rc2 {[%emt 0:00:25]} 61. Kd4 {[%emt 0:00:35]} b2 {[%emt 0:00:32]} 62. Rb7+ {[%emt 0:01:14]} Kd8 {[%emt 0:00:22]} 63. Rb4 {[%emt 0:00:30]} c3 {[%emt 0:00:29]} 64. Kd3 {[%emt 0:00:31]} Rc1 {[%emt 0:00:24]} 65. Rd4+ {[%emt 0:00:29]} Ke7 {[%emt 0:00:19]} 0-1

[Event "Czech Youth U12 Boys 2024"]
[Site "Kouty nad Desnou"]
[Date "2024.03.15"]
[Round "8.10"]
[White "Hanzel, Martin"]
[Black "Malek, Daniel"]
[Result "1-0"]
[ECO "B13"]
[WhiteElo "1474"]
[BlackElo "2278"]
[Annotator "TA"]
[PlyCount "63"]
[EventDate "2024.03.10"]
[EventType "swiss"]
[EventCountry "CZE"]
[SourceTitle "playchess.com"]
[Source "ChessBase"]
[SourceQuality "1"]
[TimeControl "40/5400+30:1800+30"]

{[%evp 9,63,26,23,21,30,39,33,33,51,43,35,16,37,0,22,13,60,26,65,75,305,45,26,-21,-18,-35,77,74,284,0,368,328,367,356,521,517,722,711,891,829,5392,494,1084,453,1057,950,945,941,751,934,969,969,29977,29978,29971,29962]} 1. e4 {[%emt 0:00:03]} c6 {[%emt 0:00:19]} 2. d4 {[%emt 0:00:13]} d5 {[%emt 0:00:07]} 3. exd5 {[%emt 0:00:10]} cxd5 {[%emt 0:00:08]} 4. Bd3 {[%emt 0:00:27]} Nc6 {[%emt 0:00:59]} 5. c3 {[%emt 0:00:58]} e6 {[%emt 0:01:43]} 6. Nf3 {[%emt 0:01:42]} Bd6 {[%emt 0:00:59]} 7. O-O {[%emt 0:00:24]} Nge7 {[%emt 0:01:27]} 8. Re1 {[%emt 0:00:58] White is slightly better.} Qc7 {[%emt 0:01:31]} 9. Nbd2 {[%emt 0:02:53]} Ng6 {[%emt 0:01:20]} 10. Nb3 {[%emt 0:02:23]} Bd7 {[%emt 0:02:46]} 11. Bg5 {[%emt 0:01:54]} f6 {[%emt 0:01:42]} 12. Bd2 {[%emt 0:01:09]} O-O-O {[%emt 0:01:15]} (12... a5 $11) 13. c4 {[%emt 0:02:04]} dxc4 {[%emt 0:03:58]} 14. Bxc4 {[%emt 0:01:19]} e5 $2 {[%emt 0:02:07] [#]} (14... Nxd4 $2 15. Nbxd4 e5 (15... Qxc4 $2 16. Rc1 $18) 16. Rc1 (16. Nb5 Bxb5 17. Bxb5 Kb8 $18) 16... exd4 17. Be6 $18 (17. Nxd4 Kb8 $11)) (14... Kb8 $16) 15. dxe5 $2 {[%emt 0:01:16]} ({White must play} 15. d5 $1 $18) 15... Ngxe5 $14 {[%emt 0:02:00]} 16. Nxe5 {[%emt 0:03:33]} (16. Bd5 $142) 16... Bxe5 $11 {[%emt 0:01:44]} 17. h3 {[%emt 0:01:04]} Bxb2 {[%emt 0:03:36]} (17... Kb8 $15) 18. Rb1 $16 {[%emt 0:01:04]} Be5 {[%emt 0:02:03]} (18... Ba3 $16) 19. Rc1 $2 {[%emt 0:01:04]} (19. Nc5 $18 b6 20. Qf3 (20. Ba6+ Kb8 $11)) 19... Bf5 $2 {[%emt 0:06:02][%mdl 8192] [#]} (19... Kb8 $11) 20. Qf3 $1 $18 {[%emt 0:02:48]} g6 {[%emt 0:07:31]} 21. Bb5 {[%emt 0:01:03]} Kb8 {[%emt 0:06:17]} (21... Rxd2 $142 22. Nxd2 Bb2) 22. Bxc6 {[%emt 0:01:55]} bxc6 {[%emt 0:00:10]} 23. Ba5 {[%emt 0:01:01]} Qe7 {[%emt 0:06:45]} 24. Bxd8 {[%emt 0:00:43]} Rxd8 {[%emt 0:00:06]} 25. Qxc6 {[%emt 0:00:32]} (25. Na5 $142 Rd3 26. Nxc6+ Ka8 27. Qxd3 (27. Nxe7+ Rxf3 28. gxf3 Bxh3 $18)) 25... Rc8 {[%emt 0:04:54]} (25... Qc7 $142 26. Na5 Qxa5 27. Rb1+ Bxb1 28. Rxb1+ Qb6 29. Rxb6+ axb6 30. Qxb6+ Kc8 31. Qc6+ Kb8) 26. Qb5+ {[%emt 0:01:01]} (26. Na5 $142 {[%cal Oc1b1] Threatening mate with Rb1+!} Bh2+ 27. Kxh2 Qc7+ 28. Qxc7+ Rxc7 29. Re8+ Rc8 30. Rcxc8+ Bxc8 31. Re7) 26... Ka8 {[%emt 0:00:53]} (26... Qb7 $142 27. Rxc8+ Bxc8) 27. Rxc8+ {[%emt 0:00:15]} Bxc8 {[%emt 0:00:04]} 28. f4 {[%emt 0:01:27]} Bd4+ {[%emt 0:00:22]} 29. Kf1 $1 {[%emt 0:00:41]} ({Inferior is} 29. Nxd4 Qxe1+ 30. Kh2 Qe4 $11) 29... Qd6 {[%emt 0:00:27]} 30. Nxd4 {[%emt 0:02:04][%cal Oe1e8] White wants to mate with Re8!} Qxd4 {[%emt 0:00:39]} 31. Qc6+ {[%emt 0:00:30]} Kb8 {[%emt 0:00:30]} 32. Rb1+ {[%emt 0:00:18] Weighted Error Value: White=1.13/Black=1.31.  Loses game:     	---       	Black=3      Missed win:     	White=2     	---        Mistake:       	White=1     	Black=4      Inaccurate:     	White=2     	Black=2      OK:         	White=3     	Black=2      Best:        	White=2     	Black=1      Strong:       	White=1     	---} 1-0

[Event "Czech Youth U12 Boys 2024"]
[Site "Kouty nad Desnou"]
[Date "2024.03.15"]
[Round "8.11"]
[White "Fadrny, Jachym"]
[Black "Broz, Pavel"]
[Result "1-0"]
[ECO "D35"]
[WhiteElo "1729"]
[BlackElo "1911"]
[Annotator "RC"]
[PlyCount "77"]
[EventDate "2024.03.10"]
[EventType "swiss"]
[EventCountry "CZE"]
[SourceTitle "playchess.com"]
[Source "ChessBase"]
[SourceQuality "1"]
[TimeControl "40/5400+30:1800+30"]

1. d4 {[%emt 0:00:05]} d5 {[%emt 0:00:22]} 2. c4 {[%emt 0:00:11]} e6 {[%emt 0:00:53]} 3. Nc3 {[%emt 0:00:11]} Nf6 {[%emt 0:01:54]} 4. cxd5 {[%emt 0:00:21]} exd5 {[%emt 0:00:46]} 5. Bg5 {[%emt 0:00:56]} Be7 {[%emt 0:03:30]} 6. e3 {[%emt 0:00:13]} h6 {[%emt 0:02:16]} 7. Bh4 {[%emt 0:00:20]} O-O {[%emt 0:02:24]} 8. Bd3 {[%emt 0:01:44]} Nc6 {[%emt 0:01:16]} 9. h3 {[%emt 0:01:55]} Be6 {[%emt 0:02:40]} 10. Nf3 {[%emt 0:02:40]} a6 {[%emt 0:13:37]} 11. a3 {[%emt 0:01:41]} Ne4 {[%emt 0:13:00]} 12. Nxe4 {[%emt 0:08:40]} dxe4 {[%emt 0:02:31]} 13. Bxe7 {[%emt 0:00:38]} Qxe7 {[%emt 0:00:14]} 14. Bxe4 {[%emt 0:01:00]} Bxh3 {[%emt 0:00:23]} 15. Bxc6 {[%emt 0:01:13]} Bxg2 {[%emt 0:00:18]} 16. Rg1 {[%emt 0:01:21]} Bxf3 {[%emt 0:00:11]} 17. Bxf3 {[%emt 0:00:03]} Qh4 {[%emt 0:01:47]} 18. Qd3 {[%emt 0:02:57]} Rfe8 {[%emt 0:00:57]} 19. Ke2 {[%emt 0:01:11]} Rad8 20. Rg4 {[%emt 0:00:35]} Qf6 {[%emt 0:00:39]} 21. Rag1 {[%emt 0:01:43]} g5 {[%emt 0:03:01]} 22. Re4 {[%emt 0:02:16]} Rxe4 {[%emt 0:00:51]} 23. Bxe4 {[%emt 0:00:51]} c5 {[%emt 0:02:54]} 24. Rd1 {[%emt 0:06:42]} h5 {[%emt 0:01:08]} 25. Qc3 {[%emt 0:07:44]} Qe6 {[%emt 0:03:40]} 26. Qxc5 {[%emt 0:04:18]} f6 {[%emt 0:02:12]} 27. Qf5 {[%emt 0:01:48]} Qxf5 {[%emt 0:03:37]} 28. Bxf5 {[%emt 0:00:49]} h4 {[%emt 0:00:53]} 29. Rc1 {[%emt 0:00:33]} Rd6 {[%emt 0:00:31]} 30. Rc8+ {[%emt 0:01:02]} Kf7 {[%emt 0:01:39]} 31. Rc7+ {[%emt 0:00:15]} Kf8 {[%emt 0:00:13]} 32. Rxb7 {[%emt 0:00:09]} Rd5 {[%emt 0:00:29]} 33. Be4 {[%emt 0:00:42]} Ra5 {[%emt 0:00:34]} 34. Rb6 {[%emt 0:00:54]} Ke7 {[%emt 0:00:17]} 35. Bd3 {[%emt 0:00:53]} f5 {[%emt 0:00:36]} 36. Rxa6 {[%emt 0:02:04]} Rxa6 {[%emt 0:00:22]} 37. Bxa6 {[%emt 0:00:07]} g4 {[%emt 0:00:06]} 38. Kf1 {[%emt 0:00:19]} h3 {[%emt 0:00:11]} 39. Bc8 {[%emt 0:00:40]} 1-0

[Event "Czech Youth U12 Boys 2024"]
[Site "Kouty nad Desnou"]
[Date "2024.03.15"]
[Round "8.12"]
[White "Novotny, Adam"]
[Black "Zvolanek, Vojtech"]
[Result "1-0"]
[ECO "C54"]
[WhiteElo "2072"]
[BlackElo "1411"]
[Annotator "RC"]
[PlyCount "61"]
[EventDate "2024.03.10"]
[EventType "swiss"]
[EventCountry "CZE"]
[SourceTitle "playchess.com"]
[Source "ChessBase"]
[SourceQuality "1"]
[TimeControl "40/5400+30:1800+30"]

1. e4 {[%emt 0:00:03]} e5 {[%emt 0:00:10]} 2. Nf3 {[%emt 0:00:26]} Nc6 {[%emt 0:00:36]} 3. Bc4 {[%emt 0:00:26]} Bc5 {[%emt 0:01:03]} 4. c3 {[%emt 0:00:21]} Nf6 {[%emt 0:01:14]} 5. d4 {[%emt 0:00:40]} exd4 {[%emt 0:01:01]} 6. cxd4 {[%emt 0:00:47]} Bb4+ {[%emt 0:02:00]} 7. Bd2 {[%emt 0:00:31]} Bxd2+ {[%emt 0:01:44]} 8. Nbxd2 {[%emt 0:00:08]} O-O {[%emt 0:01:01]} 9. Qb3 {[%emt 0:04:45]} Ne7 {[%emt 0:12:46]} 10. e5 {[%emt 0:06:36]} Ng4 {[%emt 0:03:04]} 11. Ng5 {[%emt 0:06:40]} Nh6 {[%emt 0:05:39]} 12. O-O {[%emt 0:04:36]} d5 {[%emt 0:06:22]} 13. exd6 {[%emt 0:04:27]} cxd6 {[%emt 0:01:40]} 14. Bd3 {[%emt 0:06:27]} Ng6 {[%emt 0:08:17]} 15. Ndf3 {[%emt 0:06:43]} Bg4 {[%emt 0:08:51]} 16. Bxg6 {[%emt 0:05:44]} hxg6 {[%emt 0:04:46]} 17. Qxb7 {[%emt 0:03:58]} Qb8 {[%emt 0:03:32]} 18. Qxb8 {[%emt 0:01:50]} Raxb8 {[%emt 0:00:11]} 19. b3 {[%emt 0:01:45]} Rbc8 {[%emt 0:01:21]} 20. Rac1 {[%emt 0:01:14]} Rfe8 {[%emt 0:03:12]} 21. h3 {[%emt 0:01:31]} Be6 {[%emt 0:01:34]} 22. Rfe1 {[%emt 0:02:27]} Bd5 {[%emt 0:04:52]} 23. Rxe8+ {[%emt 0:02:16]} Rxe8 {[%emt 0:00:33]} 24. h4 {[%emt 0:04:00]} Bb7 {[%emt 0:01:59]} 25. Rc7 {[%emt 0:01:55]} Rb8 {[%emt 0:01:00]} 26. Rd7 {[%emt 0:03:36]} d5 {[%emt 0:01:05]} 27. b4 {[%emt 0:02:43]} a6 {[%emt 0:01:02]} 28. a4 {[%emt 0:01:57]} Bc6 {[%emt 0:00:57]} 29. Rd6 {[%emt 0:01:41]} Bb7 {[%emt 0:02:22]} 30. b5 {[%emt 0:02:08]} axb5 {[%emt 0:00:27]} 31. axb5 {[%emt 0:00:16]} 1-0